[Event "Vasteras Open Minor 2018"]
[Site "Vasteras"]
[Date "2018.09.28"]
[Round "2"]
[White "Arnason, Saemundur"]
[Black "Lofgren, John"]
[Result "0-1"]
[ECO "A51"]
[WhiteElo "1312"]
[BlackElo "1511"]
[Annotator "NA RC"]
[PlyCount "102"]
[EventDate "2018.09.28"]
[EventCountry "SWE"]
[SourceTitle "playchess.com"]
[Source "ChessBase"]
[SourceQuality "1"]
[TimeControl "900+5"]

1. d4 {[%emt 0:00:00]} Nf6 {[%emt 0:00:00]} 2. c4 {[%emt 0:00:00]} e5 {[%emt 0:00:00]} 3. dxe5 {[%emt 0:00:11]} Ne4 {[%emt 0:00:00]} 4. Qc2 {[%emt 0:00:19]} d5 {[%emt 0:01:42]} 5. exd6 {[%emt 0:00:25]} Nxd6 {[%emt 0:00:02]} 6. Nf3 {[%emt 0:00:12]} Bf5 {[%emt 0:00:04]} 7. Qb3 {[%emt 0:00:39]} Nc6 {[%emt 0:00:33]} 8. Nc3 {[%emt 0:00:36]} Be7 {[%emt 0:02:37]} 9. Bf4 {[%emt 0:00:16]} Rb8 {[%emt 0:00:53]} 10. e3 {[%emt 0:00:09]} O-O {[%emt 0:00:07]} 11. Be2 {[%emt 0:00:04]} Re8 {[%emt 0:00:07]} 12. O-O {[%emt 0:00:04]} Bf6 {[%emt 0:00:08]} 13. Nd5 {[%emt 0:00:20]} Na5 {[%emt 0:00:48]} 14. Qb4 {[%emt 0:00:49]} Nc6 {[%emt 0:00:04]} 15. Qd2 {[%emt 0:00:12]} Ne4 {[%emt 0:00:04]} 16. Qd1 {[%emt 0:00:35]} Be5 {[%emt 0:00:28]} 17. Nxe5 {[%emt 0:00:26]} Nxe5 {[%emt 0:00:02]} 18. Bxe5 {[%emt 0:00:11]} Rxe5 {[%emt 0:00:03]} 19. Bf3 {[%emt 0:00:07]} c6 {[%emt 0:00:16]} 20. Bxe4 {[%emt 0:00:33]} Bxe4 {[%emt 0:00:08]} 21. Nc3 {[%emt 0:00:03]} Bd3 {[%emt 0:00:17]} 22. Re1 {[%emt 0:00:26]} Bxc4 {[%emt 0:00:11]} 23. Qxd8+ {[%emt 0:00:08]} Rxd8 {[%emt 0:00:01]} 24. b3 {[%emt 0:00:07]} Be6 {[%emt 0:00:22]} 25. Rad1 {[%emt 0:00:01]} Rxd1 {[%emt 0:00:10]} 26. Rxd1 {[%emt 0:00:01]} g6 {[%emt 0:00:04]} 27. h3 {[%emt 0:00:22]} Rc5 {[%emt 0:00:01]} 28. Rd8+ {[%emt 0:00:15]} Kg7 {[%emt 0:00:01]} 29. Ne4 {[%emt 0:00:15]} Rc1+ {[%emt 0:00:30]} 30. Kh2 {[%emt 0:00:01]} Rc2 {[%emt 0:00:06]} 31. Kg3 {[%emt 0:00:20]} Rxa2 {[%emt 0:00:06]} 32. Rb8 {[%emt 0:00:04]} b6 {[%emt 0:00:02]} 33. Rb7 {[%emt 0:00:19]} Rb2 {[%emt 0:00:10]} 34. Rxa7 {[%emt 0:00:02]} Rxb3 {[%emt 0:00:01]} 35. Rc7 {[%emt 0:00:12]} c5 {[%emt 0:00:04]} 36. Nd6 {[%emt 0:00:08]} c4 {[%emt 0:00:04]} 37. Ne4 {[%emt 0:00:32]} h6 {[%emt 0:00:19]} 38. Kf3 {[%emt 0:00:44]} Bd5 {[%emt 0:00:01]} 39. g4 {[%emt 0:00:16]} b5 {[%emt 0:00:11]} 40. Kf4 {[%emt 0:00:10]} Bxe4 {[%emt 0:00:10]} 41. Kxe4 {[%emt 0:00:02]} Kf6 {[%emt 0:00:06]} 42. f4 {[%emt 0:00:11]} Ke6 {[%emt 0:00:03]} 43. Kd4 {[%emt 0:00:01]} Rd3+ {[%emt 0:00:06]} 44. Ke4 {[%emt 0:00:11]} Rd5 {[%emt 0:00:09]} 45. h4 {[%emt 0:00:51]} Kd6 {[%emt 0:00:04]} 46. Rxf7 c3 {[%emt 0:00:05]} 47. Rf8 {[%emt 0:00:25]} Rc5 {[%emt 0:00:48]} 48. Rd8+ {[%emt 0:00:23]} Ke6 {[%emt 0:00:09]} 49. Rd1 {[%emt 0:00:02]} b4 {[%emt 0:00:10]} 50. Rc1 {[%emt 0:00:08]} b3 {[%emt 0:00:05]} 51. Kd3 {[%emt 0:00:02]} b2 {[%emt 0:00:01]} 0-1

[Event "Vasteras Open Minor 2018"]
[Site "Vasteras"]
[Date "2018.09.28"]
[Round "2"]
[White "Gerdes, Sebastian"]
[Black "Davidsson, Joshua"]
[Result "1-0"]
[ECO "A20"]
[WhiteElo "1301"]
[BlackElo "1500"]
[Annotator "NA RC"]
[PlyCount "61"]
[EventDate "2018.09.28"]
[EventCountry "SWE"]
[SourceTitle "playchess.com"]
[Source "ChessBase"]
[SourceQuality "1"]
[TimeControl "900+5"]

1. c4 {[%emt 0:00:00]} e5 {[%emt 0:00:02]} 2. g3 {[%emt 0:00:00]} Nf6 {[%emt 0:00:14]} 3. Bg2 {[%emt 0:00:00]} Nc6 {[%emt 0:00:06]} 4. Nc3 {[%emt 0:00:02]} Bb4 {[%emt 0:00:06]} 5. a3 {[%emt 0:00:03]} Bxc3 {[%emt 0:00:06]} 6. bxc3 {[%emt 0:00:01]} d6 {[%emt 0:00:02]} 7. d4 {[%emt 0:00:01]} exd4 {[%emt 0:00:13]} 8. cxd4 {[%emt 0:00:01]} d5 {[%emt 0:00:03]} 9. Bg5 {[%emt 0:00:13]} Be6 {[%emt 0:00:17]} 10. e4 {[%emt 0:00:20]} Na5 {[%emt 0:02:00]} 11. cxd5 {[%emt 0:00:08]} Bg4 {[%emt 0:00:08]} 12. Qa4+ {[%emt 0:00:01]} c6 {[%emt 0:00:11]} 13. e5 {[%emt 0:00:09]} h6 {[%emt 0:00:17]} 14. Bxf6 {[%emt 0:00:36]} gxf6 {[%emt 0:00:01]} 15. dxc6 {[%emt 0:00:01]} Nxc6 {[%emt 0:00:20]} 16. Bxc6+ {[%emt 0:00:02]} Bd7 {[%emt 0:00:20]} 17. Bxd7+ {[%emt 0:00:09]} Qxd7 {[%emt 0:00:02]} 18. Qxd7+ {[%emt 0:00:01]} Kxd7 {[%emt 0:00:02]} 19. Rd1 {[%emt 0:00:01]} fxe5 {[%emt 0:00:02]} 20. dxe5+ Ke6 21. f4 {[%emt 0:00:05]} Rac8 {[%emt 0:00:10]} 22. Nf3 {[%emt 0:00:05]} Rc3 {[%emt 0:00:04]} 23. Nd4+ {[%emt 0:00:01]} Ke7 {[%emt 0:00:10]} 24. Nb5 {[%emt 0:00:10]} Rb3 {[%emt 0:00:06]} 25. Nxa7 {[%emt 0:00:10]} Rxa3 {[%emt 0:00:02]} 26. Nb5 {[%emt 0:00:01]} Rb3 {[%emt 0:00:05]} 27. Nd6 {[%emt 0:00:01]} Ra8 {[%emt 0:00:04]} 28. O-O {[%emt 0:00:08]} Ra2 {[%emt 0:00:05]} 29. Nf5+ {[%emt 0:00:10]} Ke6 {[%emt 0:00:04]} 30. g4 {[%emt 0:00:08]} Rbb2 {[%emt 0:00:08]} 31. Rd6# {[%emt 0:00:02]} 1-0

[Event "Vasteras Open Minor 2018"]
[Site "Vasteras"]
[Date "2018.09.28"]
[Round "2"]
[White "Tolstoy, Anastasia"]
[Black "Ohlund, Anders"]
[Result "1-0"]
[ECO "B30"]
[WhiteElo "1228"]
[BlackElo "1483"]
[Annotator "NA RC"]
[PlyCount "113"]
[EventDate "2018.09.28"]
[EventCountry "SWE"]
[SourceTitle "playchess.com"]
[Source "ChessBase"]
[SourceQuality "1"]
[TimeControl "900+5"]

1. e4 {[%emt 0:00:00]} c5 {[%emt 0:00:00]} 2. Nf3 {[%emt 0:00:01]} Nc6 {[%emt 0:00:07]} 3. c3 {[%emt 0:00:14]} g6 {[%emt 0:00:15]} 4. d4 {[%emt 0:00:04]} cxd4 {[%emt 0:00:25]} 5. cxd4 {[%emt 0:00:04]} Bg7 {[%emt 0:00:26]} 6. Bc4 {[%emt 0:00:19]} e6 {[%emt 0:00:48]} 7. Nc3 {[%emt 0:00:10]} Qb6 {[%emt 0:00:55]} 8. e5 {[%emt 0:00:35]} Nge7 {[%emt 0:00:47]} 9. O-O {[%emt 0:00:52]} O-O {[%emt 0:00:54]} 10. Bb3 {[%emt 0:00:49]} Qc7 {[%emt 0:00:54]} 11. Be3 {[%emt 0:00:23]} Nf5 {[%emt 0:00:30]} 12. Bc2 {[%emt 0:00:27]} Nxe3 {[%emt 0:00:07]} 13. fxe3 a6 {[%emt 0:00:14]} 14. a3 {[%emt 0:00:42]} b5 {[%emt 0:00:10]} 15. b4 {[%emt 0:00:04]} Bb7 {[%emt 0:00:18]} 16. Ne4 {[%emt 0:00:21]} Ne7 {[%emt 0:02:11]} 17. Rc1 {[%emt 0:00:49]} Qd8 {[%emt 0:00:22]} 18. Nc5 {[%emt 0:00:23]} Bc6 {[%emt 0:00:23]} 19. Be4 {[%emt 0:00:41]} Bxe4 {[%emt 0:00:08]} 20. Nxe4 {[%emt 0:00:02]} Nf5 {[%emt 0:00:05]} 21. Qe2 {[%emt 0:00:19]} d5 {[%emt 0:00:22]} 22. exd6 {[%emt 0:00:03]} Nxd6 {[%emt 0:00:02]} 23. Nc5 {[%emt 0:00:20]} Nc4 {[%emt 0:00:31]} 24. Nd2 {[%emt 0:00:49]} Nxa3 {[%emt 0:00:17]} 25. Qd3 {[%emt 0:00:01]} Nc4 {[%emt 0:00:15]} 26. Nxc4 {[%emt 0:00:02]} bxc4 {[%emt 0:00:01]} 27. Qxc4 {[%emt 0:00:36]} Qd6 {[%emt 0:02:30]} 28. Ra1 {[%emt 0:00:19]} Rfc8 {[%emt 0:00:28]} 29. Qd3 {[%emt 0:00:25]} Rcb8 {[%emt 0:00:36]} 30. Rxa6 {[%emt 0:00:31]} Rxa6 {[%emt 0:00:42]} 31. Nxa6 {[%emt 0:00:01]} Rb6 {[%emt 0:00:19]} 32. Ra1 {[%emt 0:00:25]} Qc6 {[%emt 0:00:39]} 33. Nc5 {[%emt 0:01:15]} Rxb4 {[%emt 0:00:11]} 34. Qc3 {[%emt 0:00:01]} Rb6 {[%emt 0:00:25]} 35. Qd2 {[%emt 0:00:35]} Rb5 {[%emt 0:00:17]} 36. Rc1 {[%emt 0:00:20]} Qd5 {[%emt 0:00:13]} 37. Qe2 {[%emt 0:00:22]} Rb8 {[%emt 0:00:04]} 38. Na6 {[%emt 0:00:11]} Rd8 {[%emt 0:00:04]} 39. Nc7 {[%emt 0:00:02]} Qd6 {[%emt 0:00:06]} 40. Nb5 {[%emt 0:00:06]} Qd7 {[%emt 0:00:02]} 41. Nc3 {[%emt 0:00:34]} Rc8 {[%emt 0:00:06]} 42. Qd2 {[%emt 0:00:13]} Rc7 {[%emt 0:00:08]} 43. Ne4 {[%emt 0:00:13]} Rb7 {[%emt 0:00:06]} 44. Nc5 {[%emt 0:00:02]} Qb5 {[%emt 0:00:08]} 45. Nxb7 {[%emt 0:00:03]} Qxb7 {[%emt 0:00:01]} 46. Qc2 {[%emt 0:00:12]} Bf8 {[%emt 0:00:04]} 47. Rb1 {[%emt 0:00:06]} Qe7 {[%emt 0:00:04]} 48. Qb3 {[%emt 0:00:08]} Kg7 {[%emt 0:00:02]} 49. Qc3 {[%emt 0:00:08]} h5 {[%emt 0:00:04]} 50. d5+ {[%emt 0:00:02]} Kg8 {[%emt 0:00:06]} 51. dxe6 {[%emt 0:00:02]} Qxe6 {[%emt 0:00:05]} 52. Qd4 {[%emt 0:00:12]} Kh7 {[%emt 0:00:09]} 53. Rf1 {[%emt 0:00:02]} Bg7 {[%emt 0:00:04]} 54. Qf4 {[%emt 0:00:07]} Bf6 {[%emt 0:00:13]} 55. Qxf6 {[%emt 0:00:06]} Qxe3+ {[%emt 0:00:03]} 56. Qf2 {[%emt 0:00:03]} Qg5 {[%emt 0:00:06]} 57. Qxf7+ {[%emt 0:00:03]} 1-0

[Event "Vasteras Open Minor 2018"]
[Site "Vasteras"]
[Date "2018.09.28"]
[Round "3"]
[White "Lofgren, John"]
[Black "Gerdes, Sebastian"]
[Result "0-1"]
[ECO "B20"]
[WhiteElo "1511"]
[BlackElo "1301"]
[Annotator "NA RC"]
[PlyCount "220"]
[EventDate "2018.09.28"]
[EventCountry "SWE"]
[SourceTitle "playchess.com"]
[Source "ChessBase"]
[SourceQuality "1"]
[TimeControl "900+5"]

1. e4 {[%emt 0:00:00]} c5 {[%emt 0:00:00]} 2. Bc4 {[%emt 0:00:00]} Nc6 {[%emt 0:00:00]} 3. Nf3 {[%emt 0:00:15]} g6 {[%emt 0:00:05]} 4. c3 {[%emt 0:00:08]} a6 {[%emt 0:00:06]} 5. a3 {[%emt 0:00:03]} b5 {[%emt 0:00:01]} 6. Ba2 {[%emt 0:00:01]} Nf6 {[%emt 0:00:10]} 7. e5 {[%emt 0:00:23]} Ng8 {[%emt 0:00:10]} 8. d4 {[%emt 0:00:11]} cxd4 {[%emt 0:00:04]} 9. Nxd4 {[%emt 0:00:39]} Nxe5 {[%emt 0:00:02]} 10. Nf3 {[%emt 0:00:02]} Nc6 {[%emt 0:00:21]} 11. Ng5 {[%emt 0:01:03]} e6 {[%emt 0:00:12]} 12. Qf3 {[%emt 0:00:04]} Qf6 {[%emt 0:00:02]} 13. Qe2 {[%emt 0:00:31]} Nge7 {[%emt 0:00:28]} 14. Ne4 {[%emt 0:00:17]} Qe5 {[%emt 0:00:26]} 15. Nbd2 {[%emt 0:00:36]} d5 {[%emt 0:00:03]} 16. f4 {[%emt 0:00:10]} Qxf4 {[%emt 0:00:13]} 17. Rf1 {[%emt 0:00:07]} Qc7 {[%emt 0:00:58]} 18. Nf6+ {[%emt 0:00:08]} Kd8 {[%emt 0:00:06]} 19. Nf3 {[%emt 0:01:03]} Nf5 {[%emt 0:00:29]} 20. Bg5 {[%emt 0:00:39]} Be7 {[%emt 0:00:16]} 21. g4 {[%emt 0:00:24]} h6 {[%emt 0:00:29]} 22. Bh4 {[%emt 0:01:02]} Nxh4 {[%emt 0:00:18]} 23. Nxh4 {[%emt 0:00:04]} g5 {[%emt 0:00:04]} 24. Ng2 {[%emt 0:00:32]} Qe5 {[%emt 0:00:23]} 25. Qxe5 {[%emt 0:01:39]} Nxe5 {[%emt 0:00:02]} 26. O-O-O {[%emt 0:00:01]} Bxf6 {[%emt 0:00:12]} 27. Rxf6 {[%emt 0:00:02]} Ke7 {[%emt 0:00:01]} 28. Rdf1 {[%emt 0:00:54]} Bb7 {[%emt 0:00:24]} 29. Kd2 {[%emt 0:00:53]} Raf8 {[%emt 0:00:05]} 30. Ne3 {[%emt 0:00:35]} h5 {[%emt 0:00:26]} 31. h3 {[%emt 0:00:09]} hxg4 {[%emt 0:00:03]} 32. Nxg4 {[%emt 0:00:58]} Nxg4 33. hxg4 {[%emt 0:00:07]} Rh2+ {[%emt 0:00:09]} 34. Kc1 {[%emt 0:00:07]} Rg2 {[%emt 0:00:02]} 35. Bb1 {[%emt 0:00:05]} Rxg4 {[%emt 0:00:13]} 36. Rh6 {[%emt 0:00:13]} f5 {[%emt 0:00:07]} 37. Rfh1 {[%emt 0:00:11]} Kd6 {[%emt 0:00:10]} 38. Rg6 {[%emt 0:00:12]} d4 {[%emt 0:00:03]} 39. Rhh6 {[%emt 0:00:09]} Re8 {[%emt 0:00:21]} 40. Bxf5 {[%emt 0:00:04]} Rg1+ {[%emt 0:00:04]} 41. Kc2 {[%emt 0:00:09]} Bd5 {[%emt 0:00:22]} 42. cxd4 {[%emt 0:00:05]} Rg2+ {[%emt 0:00:02]} 43. Kc3 {[%emt 0:00:25]} a5 {[%emt 0:00:20]} 44. Bh3 {[%emt 0:00:27]} Rg3+ {[%emt 0:00:05]} 45. Kd2 {[%emt 0:00:07]} Rb3 {[%emt 0:00:35]} 46. Kc2 {[%emt 0:00:04]} Rc8+ {[%emt 0:00:06]} 47. Kd1 {[%emt 0:00:18]} Re8 {[%emt 0:00:23]} 48. Kc1 {[%emt 0:00:02]} Rc8+ {[%emt 0:00:24]} 49. Kd1 {[%emt 0:00:06]} Re8 {[%emt 0:00:28]} 50. Kc2 {[%emt 0:00:07]} Rg3 {[%emt 0:00:12]} 51. Kd2 {[%emt 0:00:07]} Rb3 {[%emt 0:00:18]} 52. Kc2 {[%emt 0:00:01]} a4 {[%emt 0:00:03]} 53. Rxg5 {[%emt 0:00:04]} Be4+ {[%emt 0:00:07]} 54. Kc1 {[%emt 0:00:08]} Rc8+ {[%emt 0:00:03]} 55. Kd1 {[%emt 0:00:07]} Rd3+ {[%emt 0:00:06]} 56. Ke2 {[%emt 0:00:11]} Rc2+ {[%emt 0:00:01]} 57. Ke1 {[%emt 0:00:01]} Bd5 {[%emt 0:00:15]} 58. Bf5 {[%emt 0:00:06]} Re3+ {[%emt 0:00:06]} 59. Kd1 {[%emt 0:00:01]} Rxb2 {[%emt 0:00:04]} 60. Kc1 {[%emt 0:00:23]} Ra2 {[%emt 0:00:13]} 61. Bg4 {[%emt 0:00:21]} Re1+ {[%emt 0:00:07]} 62. Bd1 {[%emt 0:00:02]} Ra1+ {[%emt 0:00:01]} 63. Kc2 {[%emt 0:00:16]} Bb3+ {[%emt 0:00:05]} 64. Kc3 {[%emt 0:00:03]} Rexd1 {[%emt 0:00:06]} 65. Rg7 {[%emt 0:00:10]} Rac1+ {[%emt 0:00:08]} 66. Kb4 {[%emt 0:00:02]} Rxd4+ {[%emt 0:00:07]} 67. Ka5 {[%emt 0:00:01]} Rc8 {[%emt 0:00:06]} 68. Rhh7 {[%emt 0:00:12]} Ra8+ {[%emt 0:00:16]} 69. Kb6 {[%emt 0:00:01]} Rb8+ {[%emt 0:00:04]} 70. Ka5 {[%emt 0:00:01]} Ke5 {[%emt 0:00:05]} 71. Rh5+ {[%emt 0:00:07]} Kf6 {[%emt 0:00:06]} 72. Rhh7 {[%emt 0:00:03]} Rd6 {[%emt 0:00:13]} 73. Rf7+ {[%emt 0:00:17]} Ke5 {[%emt 0:00:04]} 74. Rh5+ {[%emt 0:00:05]} Kd4 {[%emt 0:00:05]} 75. Rh4+ {[%emt 0:00:03]} Kc5 {[%emt 0:00:03]} 76. Rc7+ {[%emt 0:00:11]} Kd5 {[%emt 0:00:05]} 77. Rh5+ {[%emt 0:00:12]} e5 {[%emt 0:00:08]} 78. Re7 {[%emt 0:00:02]} Re6 {[%emt 0:00:02]} 79. Rd7+ {[%emt 0:00:03]} Kc6 {[%emt 0:00:07]} 80. Ra7 {[%emt 0:00:15]} e4 {[%emt 0:00:08]} 81. Ra6+ {[%emt 0:00:01]} Kc7 {[%emt 0:00:20]} 82. Rh7+ {[%emt 0:00:05]} Kc8 {[%emt 0:00:07]} 83. Raa7 {[%emt 0:00:04]} Rd6 {[%emt 0:00:25]} 84. Rac7+ {[%emt 0:00:07]} Kd8 {[%emt 0:00:07]} 85. Rcg7 {[%emt 0:00:05]} Re6 {[%emt 0:00:13]} 86. Rd7+ {[%emt 0:00:25]} Ke8 {[%emt 0:00:06]} 87. Rdg7 {[%emt 0:00:10]} Rf6 {[%emt 0:00:20]} 88. Re7+ {[%emt 0:00:03]} Kf8 {[%emt 0:00:01]} 89. Rxe4 {[%emt 0:00:13]} Ra8+ {[%emt 0:00:14]} 90. Kb4 {[%emt 0:00:02]} Bc2 {[%emt 0:00:05]} 91. Rh8+ {[%emt 0:00:27]} Kg7 {[%emt 0:00:00]} 92. Rxa8 {[%emt 0:00:01]} Bxe4 {[%emt 0:00:02]} 93. Ra7+ {[%emt 0:00:01]} Rf7 {[%emt 0:00:19]} 94. Ra6 {[%emt 0:00:06]} Bd3 {[%emt 0:00:02]} 95. Rd6 {[%emt 0:00:02]} Bc4 {[%emt 0:00:04]} 96. Rd2 {[%emt 0:00:02]} Rf3 {[%emt 0:00:03]} 97. Rg2+ {[%emt 0:00:04]} Kf6 {[%emt 0:00:01]} 98. Rh2 {[%emt 0:00:17]} Rb3+ {[%emt 0:00:04]} 99. Kc5 {[%emt 0:00:01]} Rxa3 {[%emt 0:00:02]} 100. Rh6+ {[%emt 0:00:08]} Kg5 {[%emt 0:00:05]} 101. Rh2 {[%emt 0:00:03]} Rc3 {[%emt 0:00:07]} 102. Kb4 {[%emt 0:00:01]} Rc1 {[%emt 0:00:05]} 103. Ka3 {[%emt 0:00:07]} Kg4 {[%emt 0:00:09]} 104. Rh7 {[%emt 0:00:09]} Rb1 {[%emt 0:00:19]} 105. Rh4+ {[%emt 0:00:11]} Kf3 {[%emt 0:00:22]} 106. Rf4+ {[%emt 0:00:10]} Ke3 {[%emt 0:00:10]} 107. Rf3+ {[%emt 0:00:04]} Kd4 {[%emt 0:00:01]} 108. Rf4+ {[%emt 0:00:02]} Kc5 {[%emt 0:00:02]} 109. Rf5+ {[%emt 0:00:01]} Bd5 {[%emt 0:00:08]} 110. Rf8 {[%emt 0:00:09]} Rb3+ {[%emt 0:00:01]} 0-1

[Event "Vasteras Open Minor 2018"]
[Site "Vasteras"]
[Date "2018.09.28"]
[Round "3"]
[White "Tabor, Matvey"]
[Black "Tolstoy, Anastasia"]
[Result "1-0"]
[ECO "C45"]
[WhiteElo "1452"]
[BlackElo "1228"]
[Annotator "NA RC"]
[PlyCount "91"]
[EventDate "2018.09.28"]
[EventCountry "SWE"]
[SourceTitle "playchess.com"]
[Source "ChessBase"]
[SourceQuality "1"]
[TimeControl "900+5"]

1. e4 {[%emt 0:00:00]} e5 {[%emt 0:00:00]} 2. Nf3 {[%emt 0:00:08]} Nc6 {[%emt 0:00:00]} 3. d4 {[%emt 0:00:08]} exd4 {[%emt 0:00:05]} 4. Nxd4 {[%emt 0:00:09]} Bc5 {[%emt 0:00:10]} 5. Be3 {[%emt 0:00:28]} Bxd4 {[%emt 0:00:22]} 6. Bxd4 {[%emt 0:00:12]} Nf6 {[%emt 0:00:04]} 7. Nc3 {[%emt 0:00:06]} d6 {[%emt 0:00:06]} 8. Bb5 {[%emt 0:00:13]} O-O {[%emt 0:00:12]} 9. Bxc6 {[%emt 0:00:09]} bxc6 {[%emt 0:00:02]} 10. h3 {[%emt 0:00:14]} Ba6 {[%emt 0:00:05]} 11. Qf3 {[%emt 0:00:27]} Nd7 {[%emt 0:01:01]} 12. O-O-O {[%emt 0:00:22]} c5 {[%emt 0:00:06]} 13. Be3 {[%emt 0:00:15]} Ne5 {[%emt 0:00:05]} 14. Qg3 {[%emt 0:00:20]} Rb8 {[%emt 0:00:20]} 15. Bxc5 {[%emt 0:00:14]} Rb7 {[%emt 0:00:44]} 16. Bd4 {[%emt 0:00:29]} Qe7 {[%emt 0:00:39]} 17. f4 {[%emt 0:00:09]} Ng6 {[%emt 0:00:07]} 18. f5 {[%emt 0:00:07]} Ne5 {[%emt 0:00:03]} 19. Nd5 {[%emt 0:00:10]} Qd8 {[%emt 0:00:52]} 20. Bxe5 {[%emt 0:00:22]} dxe5 {[%emt 0:00:08]} 21. f6 {[%emt 0:00:10]} g6 {[%emt 0:00:15]} 22. Ne7+ {[%emt 0:00:06]} Kh8 {[%emt 0:00:09]} 23. Rxd8 {[%emt 0:00:02]} Rxd8 {[%emt 0:00:02]} 24. Qg5 {[%emt 0:00:30]} Rb6 {[%emt 0:01:17]} 25. Nd5 {[%emt 0:00:23]} Re6 {[%emt 0:00:42]} 26. Qh6 {[%emt 0:00:09]} Rg8 {[%emt 0:00:15]} 27. Ne7 {[%emt 0:00:04]} Rxf6 {[%emt 0:00:06]} 28. Nxg8 {[%emt 0:00:18]} Kxg8 {[%emt 0:00:01]} 29. Rd1 {[%emt 0:00:03]} Rd6 {[%emt 0:01:20]} 30. Rxd6 {[%emt 0:00:04]} cxd6 {[%emt 0:00:01]} 31. Qg5 {[%emt 0:00:04]} Bb7 {[%emt 0:00:41]} 32. h4 {[%emt 0:00:05]} Bxe4 {[%emt 0:00:04]} 33. h5 {[%emt 0:00:02]} Kf8 {[%emt 0:00:09]} 34. h6 {[%emt 0:00:03]} Ke8 {[%emt 0:00:06]} 35. Qe3 {[%emt 0:00:09]} Bxg2 {[%emt 0:00:14]} 36. Qxa7 {[%emt 0:00:01]} e4 {[%emt 0:00:02]} 37. Kd2 {[%emt 0:00:03]} d5 {[%emt 0:00:02]} 38. Qd4 {[%emt 0:00:03]} Ke7 {[%emt 0:00:12]} 39. a4 {[%emt 0:00:03]} Ke8 {[%emt 0:00:17]} 40. a5 {[%emt 0:00:03]} Kd8 {[%emt 0:00:04]} 41. a6 {[%emt 0:00:02]} Kc8 {[%emt 0:00:01]} 42. Qb6 {[%emt 0:00:07]} e3+ {[%emt 0:00:11]} 43. Kxe3 d4+ 44. Kxd4 {[%emt 0:00:12]} f5 {[%emt 0:00:09]} 45. Kc5 {[%emt 0:00:08]} f4 {[%emt 0:00:02]} 46. Kd6 {[%emt 0:00:03]} 1-0

[Event "Vasteras Open Minor 2018"]
[Site "Vasteras"]
[Date "2018.09.28"]
[Round "3"]
[White "Agelin, Robin"]
[Black "Flykt, Gabriel"]
[Result "0-1"]
[ECO "A40"]
[WhiteElo "1395"]
[BlackElo "1584"]
[Annotator "NA RC"]
[PlyCount "114"]
[EventDate "2018.09.28"]
[EventCountry "SWE"]
[SourceTitle "playchess.com"]
[Source "ChessBase"]
[SourceQuality "1"]
[TimeControl "900+5"]

1. d4 {[%emt 0:00:00]} e6 {[%emt 0:00:00]} 2. c4 {[%emt 0:00:03]} c5 {[%emt 0:00:01]} 3. Nf3 {[%emt 0:00:06]} Nf6 {[%emt 0:00:18]} 4. Bg5 {[%emt 0:00:15]} Be7 {[%emt 0:00:01]} 5. Nc3 {[%emt 0:00:02]} cxd4 {[%emt 0:00:21]} 6. Nxd4 {[%emt 0:00:10]} d5 {[%emt 0:00:19]} 7. e3 {[%emt 0:00:10]} O-O {[%emt 0:00:09]} 8. Bd3 {[%emt 0:00:09]} dxc4 {[%emt 0:00:42]} 9. Bxc4 {[%emt 0:00:08]} Nd5 {[%emt 0:00:03]} 10. Nxd5 {[%emt 0:00:29]} Bxg5 {[%emt 0:00:05]} 11. Nc3 {[%emt 0:00:12]} Qc7 {[%emt 0:00:44]} 12. Nf3 {[%emt 0:00:08]} Bxe3 {[%emt 0:01:09]} 13. fxe3 {[%emt 0:00:33]} Qxc4 {[%emt 0:00:01]} 14. Qd4 {[%emt 0:00:18]} Qxd4 {[%emt 0:00:06]} 15. Nxd4 {[%emt 0:00:02]} Bd7 {[%emt 0:00:05]} 16. O-O-O {[%emt 0:00:05]} Bc6 {[%emt 0:01:32]} 17. Rhg1 {[%emt 0:00:26]} Rd8 {[%emt 0:00:19]} 18. Nxc6 {[%emt 0:00:29]} Nxc6 {[%emt 0:00:00]} 19. Kc2 {[%emt 0:00:32]} Rac8 {[%emt 0:00:20]} 20. a3 {[%emt 0:00:53]} Kf8 {[%emt 0:00:14]} 21. g4 {[%emt 0:00:24]} Ke7 {[%emt 0:00:12]} 22. h4 {[%emt 0:00:01]} Ne5 {[%emt 0:00:14]} 23. Rg3 {[%emt 0:00:50]} Rxd1 {[%emt 0:00:42]} 24. Kxd1 {[%emt 0:00:03]} Rc4 {[%emt 0:00:01]} 25. e4 {[%emt 0:00:11]} Rd4+ {[%emt 0:00:15]} 26. Ke2 {[%emt 0:00:03]} Nc4 {[%emt 0:00:13]} 27. Rd3 {[%emt 0:01:25]} Rxd3 {[%emt 0:00:13]} 28. Kxd3 {[%emt 0:00:03]} Nxb2+ {[%emt 0:00:15]} 29. Kd4 {[%emt 0:00:13]} a6 {[%emt 0:00:11]} 30. e5 {[%emt 0:00:13]} f6 {[%emt 0:00:29]} 31. g5 {[%emt 0:00:29]} fxe5+ {[%emt 0:00:04]} 32. Kxe5 {[%emt 0:00:02]} Nc4+ {[%emt 0:00:01]} 33. Kd4 {[%emt 0:00:06]} Nxa3 {[%emt 0:00:01]} 34. Kc5 {[%emt 0:00:10]} Nb5 {[%emt 0:00:22]} 35. Ne4 {[%emt 0:00:05]} Kd7 {[%emt 0:00:20]} 36. Kb6 {[%emt 0:00:10]} Nd6 {[%emt 0:00:18]} 37. Nc5+ {[%emt 0:00:21]} Ke7 {[%emt 0:00:04]} 38. Nd3 {[%emt 0:00:25]} Nf5 {[%emt 0:00:32]} 39. h5 {[%emt 0:00:07]} Ng3 {[%emt 0:00:02]} 40. h6 {[%emt 0:00:11]} gxh6 {[%emt 0:00:05]} 41. gxh6 {[%emt 0:00:02]} Nf5 {[%emt 0:00:01]} 42. Kxb7 {[%emt 0:00:02]} a5 {[%emt 0:00:01]} 43. Ne5 {[%emt 0:00:11]} Nxh6 {[%emt 0:00:12]} 44. Nc4 {[%emt 0:00:01]} a4 {[%emt 0:00:01]} 45. Kb6 {[%emt 0:00:01]} Kf6 {[%emt 0:00:22]} 46. Kb5 {[%emt 0:00:02]} a3 {[%emt 0:00:01]} 47. Nxa3 {[%emt 0:00:01]} e5 {[%emt 0:00:01]} 48. Kc4 {[%emt 0:00:03]} Kf5 {[%emt 0:00:01]} 49. Nc2 {[%emt 0:00:01]} Kf4 {[%emt 0:00:02]} 50. Ne1 {[%emt 0:00:09]} e4 {[%emt 0:00:03]} 51. Nc2 {[%emt 0:00:04]} e3 {[%emt 0:00:03]} 52. Kd3 {[%emt 0:00:03]} Nf5 {[%emt 0:00:02]} 53. Ke2 {[%emt 0:00:10]} h5 {[%emt 0:00:06]} 54. Kf1 {[%emt 0:00:07]} Kf3 {[%emt 0:00:04]} 55. Ke1 {[%emt 0:00:05]} h4 {[%emt 0:00:09]} 56. Nxe3 {[%emt 0:00:04]} Nxe3 {[%emt 0:00:02]} 57. Kd2 {[%emt 0:00:02]} h3 {[%emt 0:00:01]} 0-1